fUSD/lending_fUSD_20260506
["ID","MTS","AMOUNT","RATE_DAILY","PERIOD"]
[421632370,1778002233000,-9999.99,0.00031426,2]
[421632365,1778002233000,-1630.30299419,0.0003084,2]
[421632368,1778002233000,-734.83,0.00031168,2]
[421632371,1778002233000,-9999.99,0.00031426,2]
[421632373,1778002233000,-150.0,0.000315,2]
[421632372,1778002233000,-200.01704937,0.000315,2]
[421632374,1778002233000,-166.66,0.00031649,30]
[421632385,1778002233000,-166.73,0.00032825,2]
[421632376,1778002233000,-230.31285806,0.000319,2]
[421632375,1778002233000,-163.239,0.00031655,2]
[421632379,1778002233000,-230.31285803,0.000319,2]
[421632383,1778002233000,-166.66,0.00032302,30]
[421632384,1778002233000,-2351.0,0.00032785,3]
[421632380,1778002233000,-1756.22150214,0.00032,2]
[421632410,1778002233000,-985.0,0.00035568,3]
[421632391,1778002233000,-151.55,0.0003328,2]
[421632413,1778002233000,-506.06204583,0.00035666,2]
[421632448,1778002233000,-958.31509402,0.00037954,15]
[421632452,1778002233000,-958.31509402,0.00037954,15]
[421632449,1778002233000,-958.31509402,0.00037954,15]
[421632456,1778002233000,-958.31509402,0.00037954,15]
[421632450,1778002233000,-958.31509402,0.00037954,15]
[421632451,1778002233000,-958.31509402,0.00037954,15]
[421632454,1778002233000,-958.31509402,0.00037954,15]
[421632453,1778002233000,-958.31509402,0.00037954,15]
[421632455,1778002233000,-958.31509402,0.00037954,15]
[421632457,1778002233000,-958.31509402,0.00037954,15]
[421632446,1778002233000,-958.31509402,0.00037954,15]
[421632459,1778002233000,-958.31509402,0.00037954,15]
[421632447,1778002233000,-958.31509402,0.00037954,15]
[421632469,1778002233000,-958.31509402,0.00037954,15]
[421632461,1778002233000,-958.31509402,0.00037954,15]
[421632460,1778002233000,-958.31509402,0.00037954,15]
[421632462,1778002233000,-958.31509402,0.00037954,15]
[421632465,1778002233000,-958.31509402,0.00037954,15]
[421632464,1778002233000,-958.31509402,0.00037954,15]
[421632463,1778002233000,-958.31509402,0.00037954,15]
[421632467,1778002233000,-958.31509402,0.00037954,15]
[421632468,1778002233000,-958.31509402,0.00037954,15]
[421632466,1778002233000,-958.31509402,0.00037954,15]
[421632471,1778002233000,-958.31509402,0.00037954,15]
[421632470,1778002233000,-958.31509402,0.00037954,15]
[421632412,1778002233000,-200.0,0.00035655,2]
[421632458,1778002233000,-958.31509402,0.00037954,15]
[421632445,1778002233000,-958.31509402,0.00037954,15]
[421632392,1778002233000,-166.66,0.00033607,30]
[421632442,1778002233000,-958.31509402,0.00037954,15]
[421632416,1778002233000,-500.0,0.00035912,2]
[421632440,1778002233000,-958.31509402,0.00037954,15]
[421632417,1778002233000,-276.94380884,0.00035938,2]
[421632415,1778002233000,-150.0,0.00035767,2]
[421632414,1778002233000,-250.08,0.00035697,30]
[421632421,1778002233000,-200.0,0.00036507,2]
[421632423,1778002233000,-1634.12148298,0.000368,2]
[421632424,1778002233000,-365.0,0.00037,2]
[421632426,1778002233000,-734.83,0.00037012,2]
[421632425,1778002233000,-4685.30481988,0.00037,3]
[421632428,1778002233000,-200.0,0.00037224,2]
[421632422,1778002233000,-200.36,0.00036719,2]
[421632432,1778002233000,-34645.77,0.00037282,2]
[421632429,1778002233000,-354.85,0.00037249,7]
[421632430,1778002233000,-195.58,0.00037273,120]
[421632431,1778002233000,-1174.84,0.00037273,48]
[421632433,1778002233000,-200.0,0.00037359,2]
[421632441,1778002233000,-958.31509402,0.00037954,15]
[421632438,1778002233000,-958.31509402,0.00037954,15]
[421632435,1778002233000,-6041.0,0.00037804,2]
[421632443,1778002233000,-958.31509402,0.00037954,15]
[421632437,1778002233000,-958.31509402,0.00037954,15]
[421632436,1778002233000,-3535.0,0.00037804,2]
[421632444,1778002233000,-958.31509402,0.00037954,15]
[421632434,1778002233000,-4399.8371185,0.0003759,2]
[421632427,1778002233000,-1000.0,0.00037201,2]
[421632439,1778002233000,-958.31509402,0.00037954,15]
[421632496,1778002234000,-940.89118323,0.00037954,15]
[421632504,1778002234000,-940.89118323,0.00037954,15]
[421632493,1778002234000,-940.89118323,0.00037954,15]
[421632494,1778002234000,-940.89118323,0.00037954,15]
[421632492,1778002234000,-940.89118323,0.00037954,15]
[421632495,1778002234000,-940.89118323,0.00037954,15]
[421632503,1778002234000,-940.89118323,0.00037954,15]
[421632501,1778002234000,-940.89118323,0.00037954,15]
[421632499,1778002234000,-940.89118323,0.00037954,15]
[421632497,1778002234000,-940.89118323,0.00037954,15]
[421632498,1778002234000,-940.89118323,0.00037954,15]
[421632500,1778002234000,-940.89118323,0.00037954,15]
[421632489,1778002234000,-940.89118323,0.00037954,15]
[421632508,1778002234000,-940.89118323,0.00037954,15]
[421632502,1778002234000,-940.89118323,0.00037954,15]
[421632490,1778002234000,-940.89118323,0.00037954,15]
[421632475,1778002234000,-958.31509402,0.00037954,15]
[421632487,1778002234000,-940.89118323,0.00037954,15]
[421632472,1778002234000,-958.31509402,0.00037954,15]
[421632473,1778002234000,-958.31509402,0.00037954,15]
[421632474,1778002234000,-958.31509402,0.00037954,15]
[421632477,1778002234000,-958.31509402,0.00037954,15]
[421632476,1778002234000,-958.31509402,0.00037954,15]
[421632505,1778002234000,-940.89118323,0.00037954,15]
[421632478,1778002234000,-958.31509402,0.00037954,15]
[421632488,1778002234000,-940.89118323,0.00037954,15]
[421632479,1778002234000,-958.31509402,0.00037954,15]
[421632485,1778002234000,-940.89118323,0.00037954,15]
[421632484,1778002234000,-940.89118323,0.00037954,15]
[421632482,1778002234000,-940.89118323,0.00037954,15]
[421632483,1778002234000,-940.89118323,0.00037954,15]
[421632481,1778002234000,-958.31509402,0.00037954,15]
[421632486,1778002234000,-940.89118323,0.00037954,15]
[421632491,1778002234000,-940.89118323,0.00037954,15]
[421632480,1778002234000,-958.31509402,0.00037954,15]
[421632517,1778002234000,-159.93,0.00038046,2]
[421632506,1778002234000,-940.89118323,0.00037954,15]
[421632509,1778002234000,-940.89118323,0.00037954,15]
[421632534,1778002234000,-500.0,0.00038155,15]
[421632537,1778002234000,-195.50779285,0.00038155,15]
[421632533,1778002234000,-173.89617342,0.00038155,15]
[421632531,1778002234000,-375.30613058,0.00038146,2]
[421632538,1778002234000,-361.73829741,0.00038155,15]
[421632536,1778002234000,-150.0,0.00038155,15]
[421632535,1778002234000,-150.0,0.00038155,15]
[421632532,1778002234000,-500.0,0.00038155,15]
[421632539,1778002234000,-433.06357837,0.00038155,15]
[421632541,1778002234000,-198.26874348,0.00038155,2]
[421632545,1778002234000,-11586.16060089,0.00038156,2]
[421632543,1778002234000,-18968.44391686,0.00038156,4]
[421632544,1778002234000,-200.0,0.00038156,30]
[421632542,1778002234000,-19472.08892681,0.00038156,4]
[421632546,1778002234000,150.0,0.00024658,2]
[421632510,1778002234000,-940.89118323,0.00037954,15]
[421632540,1778002234000,-347.03431576,0.00038155,15]
[421632529,1778002234000,-4538.44561062,0.00038137,120]
[421632520,1778002234000,-33118.4782,0.00038056,2]
[421632528,1778002234000,-452.55438938,0.00038137,120]
[421632530,1778002234000,-22186.58,0.00038146,2]
[421632516,1778002234000,-301.9417159,0.00038,2]
[421632507,1778002234000,-940.89118323,0.00037954,15]
[421632513,1778002234000,-488.3784,0.00037956,2]
[421632511,1778002234000,-940.89118323,0.00037954,15]
[421632512,1778002234000,-6905.82956739,0.00037955,2]
[421632514,1778002234000,-1823.1501,0.00037956,2]
[421632519,1778002234000,-3708.2174,0.00038055,2]
[421632515,1778002234000,-895.0,0.00038,2]
[421632522,1778002234000,-5000.0,0.00038056,2]
[421632521,1778002234000,-2500.0,0.00038056,2]
[421632523,1778002234000,-3296.43558961,0.00038056,2]
[421632524,1778002234000,-13515.23297376,0.00038056,2]
[421632527,1778002234000,-220.22601738,0.00038056,2]
[421632525,1778002234000,-1247.5024811,0.00038056,2]
[421632526,1778002234000,-167.16724664,0.00038056,2]
[421632518,1778002234000,-22186.58,0.00038046,2]
[421632568,1778002238000,-500.0,0.00037954,15]
[421632565,1778002238000,-150.0,0.00027185,2]
[421632566,1778002238000,-390.0,0.0003,2]
[421632567,1778002238000,-642.44129367,0.0003013,2]
[421632564,1778002238000,-150.0,0.0002589,2]
[421632573,1778002238000,-50559.78994479,0.00038156,2]
[421632572,1778002238000,-380584.01946286,0.00038156,2]
[421632570,1778002238000,-328.35338478,0.00038055,2]
[421632571,1778002238000,-112030.41239203,0.00038156,2]
[421632569,1778002238000,-4107.5150962,0.00038011,2]
[421632785,1778002240000,-800.30798175,0.00038156,2]
[421632787,1778002240000,-2018.596905,0.00038156,2]
[421632862,1778002241000,-289.5,0.00038156,2]
[421632860,1778002241000,-775.01533889,0.00038156,2]
[421632851,1778002241000,-48991.45797951,0.00038156,2]
[421632857,1778002241000,-272.5845,0.00038156,2]
[421632849,1778002241000,-61713.38648931,0.00038156,2]
[421632854,1778002241000,-270.28443954,0.00038156,2]
[421633132,1778002243000,-3935.9261,0.00037182,2]
[421633134,1778002243000,-886.88,0.00038146,10]
[421633135,1778002243000,-1713.59239417,0.00038156,2]
[421633258,1778002244000,-661.03999474,0.00038156,2]
[421633255,1778002244000,-43.3584024,0.00038156,2]
[421633241,1778002244000,-800.91354158,0.00038056,2]
[421633243,1778002244000,-344796.93206405,0.00038156,2]
[421633246,1778002244000,-568.85991584,0.00038156,2]
[421633555,1778002246000,-3061.94379826,0.00038156,2]
[421633486,1778002246000,-107219.57139511,0.00038156,2]
[421633485,1778002246000,-26288.63289423,0.00038156,2]
[421633565,1778002247000,-212152.66511847,0.00038156,2]
[421633573,1778002247000,-18.27008506,0.00038156,2]
[421633558,1778002247000,-721.74584029,0.00038156,2]
[421634052,1778002251000,1685.4485443,0.0002,2]
[421634185,1778002252000,7207.17871632,0.00025,2]
[421634376,1778002254000,1149.08813476,0.0002421,2]
[421635157,1778002260000,158.67375907,0.000235,2]
[421635153,1778002260000,2224.64902517,0.00025,2]
[421635274,1778002262000,169.16049704,0.00025,2]
[421635360,1778002264000,65886.25722425,0.000107,2]
[421635364,1778002265000,13684.43048226,0.0002,2]
[421635365,1778002265000,5000.01,0.0002,2]
[421635367,1778002387000,618.83,7.945e-05,2]
[421635370,1778002507000,264.855992,7.945e-05,2]
[421635373,1778002801000,-1478.57503492,0.000198,2]
[421635378,1778002843000,-300.0,0.00019999,2]
[421635377,1778002843000,-1259.27334808,0.0002,2]
[421635375,1778002843000,-440.0,0.000199,2]
[421635374,1778002843000,-1259.27334808,0.000198,2]
[421635376,1778002843000,-1038.57503492,0.00019999,2]
[421635379,1778002844000,-959.27334808,0.0002,2]
[421635380,1778002886000,-1259.27334808,0.0002,2]
[421635389,1778002887000,-250.0,0.0002178,2]
[421635388,1778002887000,-89.01280871,0.00021,2]
[421635384,1778002887000,-8802.69400582,0.0002,2]
[421635386,1778002887000,-165.17,0.0002,2]
[421635387,1778002887000,-429.98719129,0.00021,2]
[421635385,1778002887000,-602.15880289,0.0002,2]
[421635383,1778002887000,-10000.01,0.0002,2]
[421635382,1778002887000,-10000.01,0.0002,2]
[421635381,1778002887000,-1259.27334808,0.0002,2]
[421635390,1778002887000,-345.95,0.000218,2]
[421635392,1778002888000,-775.93,0.00024174,2]
[421635391,1778002888000,-1077.46,0.00024,2]
[421635393,1778002888000,-212.25,0.00024658,2]
[421635395,1778002888000,-4843.50518061,0.00025,2]
[421635396,1778002888000,-150.3524688,0.00025,2]
[421635397,1778002888000,-150.0,0.00025,2]
[421635394,1778002888000,-163.77797545,0.00025,2]
[421635398,1778002902000,525.0,0.00021,2]
[421635399,1778002927000,4398.155213,7.945e-05,2]
[421635400,1778002952000,302.03,0.00017002,2]
[421635403,1778002953000,302.03,0.00019687,2]
[421635402,1778002953000,302.03,0.00018792,2]
[421635401,1778002953000,302.03,0.00017897,2]
[421635405,1778003156000,-191.15366134,0.00020582,2]
[421635407,1778003185000,152.0,0.00018723,2]
[421635421,1778003388000,-17806.82731588,0.00022649,2]
[421635422,1778003388000,-279.99,0.00022967,2]
[421635425,1778003388000,-171.34,0.00024163,2]
[421635419,1778003388000,-300.0,0.00022648,2]
[421635424,1778003388000,-302.03,0.00024161,2]
[421635420,1778003388000,-56177.37057957,0.00022649,2]
[421635413,1778003388000,-110.87633866,0.00020582,2]
[421635416,1778003388000,-302.03,0.00022371,2]
[421635417,1778003388000,-1002.41825957,0.00022499,2]
[421635415,1778003388000,-302.03,0.00021477,2]
[421635414,1778003388000,-522.0,0.00021,2]
[421635418,1778003388000,-197.58174043,0.00022499,2]
[421635426,1778003388000,-1027.98,0.00024174,2]
[421635438,1778003388000,-500.0,0.00025883,2]
[421635427,1778003388000,-222.16,0.00024174,2]
[421635423,1778003388000,-302.03,0.00023266,2]
[421635439,1778003388000,-500.0,0.00025883,2]
[421635437,1778003388000,-177.72,0.00025786,2]
[421635435,1778003388000,-11181.47097985,0.00025152,2]
[421635434,1778003388000,-7466.58718612,0.00025152,2]
[421635436,1778003388000,-822.38,0.00025786,2]
[421635433,1778003388000,-302.03,0.00025056,2]
[421635431,1778003388000,-150.0,0.00024658,2]
[421635430,1778003388000,-420.0,0.00024594,2]
[421635429,1778003388000,-394.15923588,0.0002455,2]
[421635428,1778003388000,-1285.84076412,0.0002455,2]
[421635432,1778003388000,-220.87,0.00024658,2]
[421635456,1778003389000,-500.0,0.00025883,2]
[421635450,1778003389000,-500.0,0.00025883,2]
[421635455,1778003389000,-500.0,0.00025883,2]
[421635453,1778003389000,-500.0,0.00025883,2]
[421635452,1778003389000,-500.0,0.00025883,2]
[421635451,1778003389000,-500.0,0.00025883,2]
[421635448,1778003389000,-500.0,0.00025883,2]
[421635449,1778003389000,-500.0,0.00025883,2]
[421635441,1778003389000,-500.0,0.00025883,2]
[421635447,1778003389000,-500.0,0.00025883,2]
[421635445,1778003389000,-500.0,0.00025883,2]
[421635446,1778003389000,-500.0,0.00025883,2]
[421635443,1778003389000,-500.0,0.00025883,2]
[421635440,1778003389000,-500.0,0.00025883,2]
[421635442,1778003389000,-182.11916908,0.00025883,2]
[421635454,1778003389000,-500.0,0.00025883,2]
[421635444,1778003389000,-500.0,0.00025883,2]
[421635459,1778003389000,-500.0,0.00025883,2]
[421635465,1778003389000,-500.0,0.00025883,2]
[421635457,1778003389000,-500.0,0.00025883,2]
[421635476,1778003389000,-500.0,0.00025883,2]
[421635474,1778003389000,-500.0,0.00025883,2]
[421635471,1778003389000,-500.0,0.00025883,2]
[421635472,1778003389000,-500.0,0.00025883,2]
[421635473,1778003389000,-500.0,0.00025883,2]
[421635470,1778003389000,-500.0,0.00025883,2]
[421635468,1778003389000,-500.0,0.00025883,2]
[421635469,1778003389000,-500.0,0.00025883,2]
[421635477,1778003389000,-500.0,0.00025883,2]
[421635467,1778003389000,-500.0,0.00025883,2]
[421635466,1778003389000,-500.0,0.00025883,2]
[421635458,1778003389000,-500.0,0.00025883,2]
[421635461,1778003389000,-500.0,0.00025883,2]
[421635460,1778003389000,-500.0,0.00025883,2]
[421635462,1778003389000,-500.0,0.00025883,2]
[421635475,1778003389000,-500.0,0.00025883,2]
[421635463,1778003389000,-500.0,0.00025883,2]
[421635464,1778003389000,-174.31280922,0.00025883,2]
[421635493,1778003390000,-500.0,0.00025883,2]
[421635492,1778003390000,-500.0,0.00025883,2]
[421635491,1778003390000,-500.0,0.00025883,2]
[421635490,1778003390000,-500.0,0.00025883,2]
[421635489,1778003390000,-500.0,0.00025883,2]
[421635488,1778003390000,-500.0,0.00025883,2]
[421635487,1778003390000,-500.0,0.00025883,2]
[421635485,1778003390000,-500.0,0.00025883,2]
[421635484,1778003390000,-500.0,0.00025883,2]
[421635483,1778003390000,-500.0,0.00025883,2]
[421635479,1778003390000,-500.0,0.00025883,2]
[421635478,1778003390000,-500.0,0.00025883,2]
[421635482,1778003390000,-500.0,0.00025883,2]
[421635480,1778003390000,-500.0,0.00025883,2]
[421635494,1778003390000,-288.98046185,0.00025883,2]
[421635486,1778003390000,-500.0,0.00025883,2]
[421635481,1778003390000,-500.0,0.00025883,2]
[421635495,1778003390000,-211.01953815,0.00025883,2]
[421635497,1778003390000,-500.0,0.00025883,2]
[421635496,1778003390000,-500.0,0.00025883,2]
[421635513,1778003390000,-500.0,0.00025883,2]
[421635512,1778003390000,-500.0,0.00025883,2]
[421635511,1778003390000,-500.0,0.00025883,2]
[421635509,1778003390000,-500.0,0.00025883,2]
[421635508,1778003390000,-500.0,0.00025883,2]
[421635507,1778003390000,-500.0,0.00025883,2]
[421635506,1778003390000,-500.0,0.00025883,2]
[421635510,1778003390000,-500.0,0.00025883,2]
[421635502,1778003390000,-500.0,0.00025883,2]
[421635504,1778003390000,-500.0,0.00025883,2]
[421635503,1778003390000,-500.0,0.00025883,2]
[421635501,1778003390000,-500.0,0.00025883,2]
[421635498,1778003390000,-500.0,0.00025883,2]
[421635500,1778003390000,-500.0,0.00025883,2]
[421635499,1778003390000,-500.0,0.00025883,2]
[421635505,1778003390000,-500.0,0.00025883,2]
[421635524,1778003391000,-1077.46,0.00026,2]
[421635530,1778003391000,-302.03,0.00026846,2]
[421635528,1778003391000,-351.98003782,0.00026767,21]
[421635527,1778003391000,-587.0,0.00026708,2]
[421635529,1778003391000,-749.0,0.00026789,2]
[421635526,1778003391000,-8559.26830129,0.00026699,2]
[421635525,1778003391000,-9344.90500338,0.00026353,2]
[421635522,1778003391000,-607.51702406,0.0002599,2]
[421635515,1778003391000,-500.0,0.00025883,2]
[421635531,1778003391000,-165.39,0.00026958,2]
[421635521,1778003391000,-302.03,0.00025951,2]
[421635519,1778003391000,-550.32129729,0.00025884,2]
[421635520,1778003391000,-20133.71597198,0.00025885,2]
[421635518,1778003391000,-500.0,0.00025883,2]
[421635517,1778003391000,-500.0,0.00025883,2]
[421635516,1778003391000,-500.0,0.00025883,2]
[421635514,1778003391000,-500.0,0.00025883,2]
[421635523,1778003391000,-218.87087764,0.00026,2]
[421635532,1778003391000,-1046.55269843,0.00027,2]
[421635544,1778003391000,-200.0,0.0003,2]
[421635533,1778003391000,-530.0,0.00027,2]
[421635550,1778003391000,-502.46,0.00030634,2]
[421635552,1778003391000,-522.0,0.00030833,11]
[421635551,1778003391000,-176.96,0.00030727,2]
[421635549,1778003391000,-242.12,0.00030627,120]
[421635547,1778003391000,-164.21,0.00030469,2]
[421635545,1778003391000,-500.0,0.00030217,2]
[421635548,1778003391000,-166.66,0.00030517,2]
[421635546,1778003391000,-302.03,0.00030425,2]
[421635534,1778003391000,-1500.0,0.00027397,2]
[421635540,1778003391000,-36.80881111,0.0002953,2]
[421635542,1778003391000,-176.96,0.00029736,2]
[421635541,1778003391000,-150.0,0.00029709,2]
[421635539,1778003391000,-265.22118889,0.0002953,2]
[421635538,1778003391000,-823.0,0.00029003,2]
[421635537,1778003391000,-302.03,0.00028635,2]
[421635536,1778003391000,-250.0,0.00028483,2]
[421635535,1778003391000,-302.03,0.00027741,2]
[421635543,1778003391000,-781.0,0.0003,2]
[421635553,1778003392000,-302.03,0.0003132,2]
[421635555,1778003392000,-453.11,0.00031426,2]
[421635556,1778003392000,-708.71561489,0.00031426,2]
[421635557,1778003392000,221.7,0.00024658,2]
[421635554,1778003392000,-324.38,0.00031426,2]
[421635558,1778003411000,152.0,0.00016,2]
[421635559,1778003413000,1158.63916517,0.00025883,2]
[421635591,1778003432000,-500.0,0.000355,5]
[421635578,1778003432000,-183.32,0.00034874,40]
[421635583,1778003432000,-151.0,0.00034979,2]
[421635589,1778003432000,-506.58951316,0.000355,5]
[421635586,1778003432000,-7688.0,0.00035,2]
[421635588,1778003432000,-303.0,0.0003523,2]
[421635587,1778003432000,-1389.64560273,0.00035,120]
[421635593,1778003432000,-500.61824174,0.000355,5]
[421635599,1778003432000,-164.21,0.00035547,2]
[421635594,1778003432000,-500.0,0.000355,5]
[421635592,1778003432000,-150.30382099,0.000355,2]
[421635596,1778003432000,-294.04,0.0003553,2]
[421635595,1778003432000,-1438.09495884,0.00035527,2]
[421635598,1778003432000,-244.18,0.0003553,2]
[421635611,1778003432000,-5041.38,0.00036,120]
[421635582,1778003432000,-151.0,0.00034979,2]
[421635612,1778003432000,-1389.64560273,0.00036,120]
[421635618,1778003432000,-150.0,0.00036,7]
[421635590,1778003432000,-500.0,0.000355,5]
[421635580,1778003432000,-151.0,0.00034979,2]
[421635585,1778003432000,-1386.78395259,0.00034979,2]
[421635579,1778003432000,-151.0,0.00034979,2]
[421635560,1778003432000,-176.96,0.00031718,2]
[421635562,1778003432000,-287.20678079,0.00031968,2]
[421635561,1778003432000,-244.07745623,0.000319,2]
[421635563,1778003432000,-120.79321921,0.00031968,2]
[421635565,1778003432000,-166.66,0.00032195,2]
[421635568,1778003432000,-162.51838138,0.00032801,2]
[421635566,1778003432000,-302.03,0.00032215,2]
[421635564,1778003432000,-1389.64560273,0.00032,120]
[421635567,1778003432000,-2000.0,0.00032247,2]
[421635601,1778003432000,-166.66,0.00035553,2]
[421635570,1778003432000,-302.03,0.0003311,2]
[421635569,1778003432000,-1389.64560273,0.00033,120]
[421635572,1778003432000,-166.66,0.00033874,2]
[421635574,1778003432000,-1000.0,0.00033913,2]
[421635573,1778003432000,-1389.64560273,0.000339,120]
[421635576,1778003432000,-242.12,0.00034456,120]
[421635575,1778003432000,-302.03,0.00034004,2]
[421635584,1778003432000,-285.0,0.00034979,2]
[421635577,1778003432000,-348.0,0.00034565,2]
[421635581,1778003432000,-151.0,0.00034979,2]
[421635571,1778003432000,-400.0,0.00033873,2]
[421635616,1778003432000,-150.0,0.00036,7]
[421635603,1778003432000,-150.0,0.00035766,2]
[421635648,1778003432000,-560.0,0.00036362,2]
[421635658,1778003432000,-1603.70259909,0.00037171,2]
[421635653,1778003432000,-200.0,0.00036931,2]
[421635652,1778003432000,-1546.48273779,0.00036623,2]
[421635654,1778003432000,-168.08431664,0.00037,2]
[421635656,1778003432000,-4500.0,0.00037,2]
[421635657,1778003432000,-150.0,0.00037,7]
[421635655,1778003432000,-1005.27534922,0.00037,2]
[421635650,1778003432000,-15060.10558174,0.0003661,7]
[421635663,1778003432000,-9747.13287319,0.00037773,2]
[421635666,1778003432000,-1167.93980651,0.00037773,2]
[421635665,1778003432000,-300.37999902,0.00037773,2]
[421635667,1778003432000,-552.68085226,0.00037773,2]
[421635671,1778003432000,-2686.57613057,0.00037855,2]
[421635668,1778003432000,-3370.01850358,0.00037773,2]
[421635669,1778003432000,-200.0,0.00037782,2]
[421635670,1778003432000,-5213.5735418,0.00037855,2]
[421635672,1778003432000,-5692.82787517,0.00037855,2]
[421635614,1778003432000,-150.0,0.00036,30]
[421635661,1778003432000,-1663.03959526,0.00037719,2]
[421635664,1778003432000,-982.80761298,0.00037773,2]
[421635659,1778003432000,-25956.1411876,0.00037194,2]
[421635662,1778003432000,-1665.10775047,0.00037755,2]
[421635607,1778003432000,-150.0,0.00035766,2]
[421635605,1778003432000,-150.0,0.00035766,2]
[421635620,1778003432000,-150.0,0.00036,7]
[421635623,1778003432000,-150.0,0.00036,7]
[421635624,1778003432000,-150.0,0.00036,7]
[421635628,1778003432000,-150.0,0.00036,7]
[421635626,1778003432000,-150.0,0.00036,7]
[421635636,1778003432000,-315.54744385,0.00036048,5]
[421635609,1778003432000,-150.0,0.00035766,2]
[421635642,1778003432000,-303.0,0.000361,2]
[421635640,1778003432000,-348.0,0.000361,2]
[421635630,1778003432000,-150.0,0.00036,7]
[421635643,1778003432000,-2000.0,0.00036278,2]
[421635632,1778003432000,-150.0,0.00036,7]
[421635645,1778003432000,-152.0,0.00036358,3]
[421635646,1778003432000,-163.3,0.00036362,60]
[421635634,1778003432000,-505.84454996,0.00036048,5]
[421635638,1778003432000,-1491.30447232,0.00036075,2]
[421635660,1778003432000,-389.0,0.00037315,2]
[421635697,1778003438000,-150.0,0.00038,7]
[421635695,1778003438000,-150.0,0.00038,7]
[421635698,1778003438000,-150.0,0.00038,7]
[421635696,1778003438000,-150.0,0.00038,7]
[421635702,1778003438000,-500.0,0.00038055,2]
[421635700,1778003438000,-168.54000001,0.00038,2]
[421635693,1778003438000,-3498.32077238,0.00038,120]
[421635701,1778003438000,-491.01681158,0.00038055,2]
[421635694,1778003438000,-150.0,0.00038,7]
[421635699,1778003438000,-150.0,0.00038,7]
[421635692,1778003438000,-294617.61420928,0.00037999,2]
[421635684,1778003438000,-4897.49151961,0.00037855,2]
[421635691,1778003438000,-500.0,0.00037973,5]
[421635687,1778003438000,-551.37201899,0.00037873,5]
[421635685,1778003438000,-36248.30506826,0.00037855,2]
[421635689,1778003438000,-2500.0,0.00037899,2]
[421635688,1778003438000,-205.24491122,0.0003788,2]
[421635690,1778003438000,-500.0,0.00037973,5]
[421635681,1778003438000,-244.07745621,0.000319,2]
[421635683,1778003438000,-44204.38366459,0.00037855,2]
[421635682,1778003438000,-244.07745621,0.000319,2]
[421635703,1778003438000,-86912.190151,0.00038142,2]
[421635686,1778003438000,-500.32951752,0.00037873,5]
[421635704,1778003438000,-2333.275714,0.00038142,2]
[421635710,1778003438000,-253.57321307,0.00038145,10]
[421635706,1778003438000,-500.0,0.00038145,10]
[421635705,1778003438000,-185.98518341,0.00038145,10]
[421635750,1778003438000,-1000.0,0.00038155,2]
[421635748,1778003438000,-1000.0,0.00038155,2]
[421635746,1778003438000,-1000.0,0.00038155,2]
[421635741,1778003438000,-151.0,0.00038153,14]
[421635728,1778003438000,-181.08010149,0.00038145,10]
[421635730,1778003438000,-187.78006525,0.00038145,10]
[421635743,1778003438000,-151.0,0.00038153,14]
[421635726,1778003438000,-174.61919141,0.00038145,10]
[421635739,1778003438000,-151.0,0.00038153,14]
[421635737,1778003438000,-151.0,0.00038153,14]
[421635733,1778003438000,-194.72792766,0.00038145,10]
[421635724,1778003438000,-500.0,0.00038145,10]
[421635707,1778003438000,-151.0,0.00038145,10]
[421635708,1778003438000,-500.0,0.00038145,10]